Workbook

Sheet Januari
A1: JANUARI
A2: Jualan Dalam Talian | C2: ID Lelong | D2: Perihalan item | E2: Harga belian | F2: Harga jualan | G2: Yuran dalam talian | H2: Yuran PayPal | I2: Yuran kad kredit | J2: Caj pengiriman | K2: Yuran pengiriman | L2: Untung/rugi jualan | M2: Untung/rugi pengiriman | N2: Jumlah untung/rugi
A3: Tahun | C3: TS001 | D3: Item 1 | E3: RM5.00 | F3: RM4.00 | G3: RM2.00 | H3: RM1.50 | I3: RM0.00 | J3: RM4.00 | K3: RM2.00 | L3: =IFERROR(JanuarySales[Harga jualan]-(JanuarySales[Harga belian]+JanuarySales[Yuran dalam talian]+JanuarySales[Yuran PayPal]+JanuarySales[Yuran kad kredit]),"") -> (RM4.50) | M3: =JanuarySales[Caj pengiriman]-JanuarySales[Yuran pengiriman] -> RM2.00 | N3: =JanuarySales[Untung/rugi jualan]+JanuarySales[Untung/rugi pengiriman] -> (RM2.50)
A4: 2012 | C4: TP004 | D4: Item 2 | E4: RM2.00 | F4: RM30.00 | G4: RM0.50 | H4: RM0.50 | J4: RM4.00 | K4: RM5.50 | L4: =IFERROR(JanuarySales[Harga jualan]-(JanuarySales[Harga belian]+JanuarySales[Yuran dalam talian]+JanuarySales[Yuran PayPal]+JanuarySales[Yuran kad kredit]),"") -> RM27.00 | M4: =JanuarySales[Caj pengiriman]-JanuarySales[Yuran pengiriman] -> (RM1.50) | N4: =JanuarySales[Untung/rugi jualan]+JanuarySales[Untung/rugi pengiriman] -> RM25.50
C5: RS99 | D5: Item 3 | E5: RM17.00 | F5: RM23.00 | G5: RM2.00 | I5: RM2.00 | J5: RM3.00 | K5: RM2.00 | L5: =IFERROR(JanuarySales[Harga jualan]-(JanuarySales[Harga belian]+JanuarySales[Yuran dalam talian]+JanuarySales[Yuran PayPal]+JanuarySales[Yuran kad kredit]),"") -> RM2.00 | M5: =JanuarySales[Caj pengiriman]-JanuarySales[Yuran pengiriman] -> RM1.00 | N5: =JanuarySales[Untung/rugi jualan]+JanuarySales[Untung/rugi pengiriman] -> RM3.00
A6: Jumlah Untung/Rugi | C6: ST001 | D6: Item 4 | E6: RM120.00 | F6: RM180.00 | G6: RM2.00 | H6: RM1.50 | J6: RM3.00 | K6: RM2.00 | L6: =IFERROR(JanuarySales[Harga jualan]-(JanuarySales[Harga belian]+JanuarySales[Yuran dalam talian]+JanuarySales[Yuran PayPal]+JanuarySales[Yuran kad kredit]),"") -> RM56.50 | M6: =JanuarySales[Caj pengiriman]-JanuarySales[Yuran pengiriman] -> RM1.00 | N6: =JanuarySales[Untung/rugi jualan]+JanuarySales[Untung/rugi pengiriman] -> RM57.50
A7: =JanuarySales[[#Totals],[Jumlah untung/rugi]] -> RM89.00 | C7: ST001 | D7: Item 5 | E7: RM10.00 | F7: RM12.00 | G7: RM2.00 | H7: RM1.50 | J7: RM14.00 | K7: RM7.00 | L7: =IFERROR(JanuarySales[Harga jualan]-(JanuarySales[Harga belian]+JanuarySales[Yuran dalam talian]+JanuarySales[Yuran PayPal]+JanuarySales[Yuran kad kredit]),"") -> (RM1.50) | M7: =JanuarySales[Caj pengiriman]-JanuarySales[Yuran pengiriman] -> RM7.00 | N7: =JanuarySales[Untung/rugi jualan]+JanuarySales[Untung/rugi pengiriman] -> RM5.50
C8: Jumlah | D8: ="Item Dijual: "&SUBTOTAL(103,JanuarySales[Perihalan item]) -> Item Dijual: 5 | E8: =SUBTOTAL(109,JanuarySales[Harga belian]) -> RM154.00 | F8: =SUBTOTAL(109,JanuarySales[Harga jualan]) -> RM249.00 | G8: =SUBTOTAL(109,JanuarySales[Yuran dalam talian]) -> RM8.50 | H8: =SUBTOTAL(109,JanuarySales[Yuran PayPal]) -> RM5.00 | I8: =SUBTOTAL(109,JanuarySales[Yuran kad kredit]) -> RM2.00 | J8: =SUBTOTAL(109,JanuarySales[Caj pengiriman]) -> RM28.00 | K8: =SUBTOTAL(109,JanuarySales[Yuran pengiriman]) -> RM18.50 | L8: =SUBTOTAL(109,JanuarySales[Untung/rugi jualan]) -> RM79.50 | M8: =SUBTOTAL(109,JanuarySales[Untung/rugi pengiriman]) -> RM9.50 | N8: =SUBTOTAL(109,JanuarySales[Jumlah untung/rugi]) -> RM89.00
A9: Arah aliran untung/rugi

Sheet Februari
A1: FEBRUARI
A2: Jualan Dalam Talian | C2: ID Lelong | D2: Perihalan item | E2: Harga belian | F2: Harga jualan | G2: Yuran dalam talian | H2: Yuran PayPal | I2: Yuran kad kredit | J2: Caj pengiriman | K2: Yuran pengiriman | L2: Untung/rugi jualan | M2: Untung/rugi pengiriman | N2: Jumlah untung/rugi
A3: Tahun | C3: TS020 | D3: Item 1 | E3: RM10.00 | F3: RM175.00 | G3: RM3.00 | H3: RM1.50 | I3: RM0.00 | J3: RM7.00 | K3: RM5.00 | L3: =IFERROR(FebruarySales[Harga jualan]-(FebruarySales[Harga belian]+FebruarySales[Yuran dalam talian]+FebruarySales[Yuran PayPal]+FebruarySales[Yuran kad kredit]),"") -> RM160.50 | M3: =FebruarySales[Caj pengiriman]-FebruarySales[Yuran pengiriman] -> RM2.00 | N3: =FebruarySales[Untung/rugi jualan]+FebruarySales[Untung/rugi pengiriman] -> RM162.50
A4: =SalesYear -> 2012 | C4: TS021 | D4: Item 2 | E4: RM32.00 | F4: RM100.00 | G4: RM3.00 | I4: RM3.20 | J4: RM20.00 | K4: RM13.00 | L4: =IFERROR(FebruarySales[Harga jualan]-(FebruarySales[Harga belian]+FebruarySales[Yuran dalam talian]+FebruarySales[Yuran PayPal]+FebruarySales[Yuran kad kredit]),"") -> RM61.80 | M4: =FebruarySales[Caj pengiriman]-FebruarySales[Yuran pengiriman] -> RM7.00 | N4: =FebruarySales[Untung/rugi jualan]+FebruarySales[Untung/rugi pengiriman] -> RM68.80
C5: TS022 | D5: Item 3 | E5: RM3.00 | F5: RM7.00 | G5: RM2.00 | I5: RM2.00 | J5: RM0.50 | K5: RM1.20 | L5: =IFERROR(FebruarySales[Harga jualan]-(FebruarySales[Harga belian]+FebruarySales[Yuran dalam talian]+FebruarySales[Yuran PayPal]+FebruarySales[Yuran kad kredit]),"") -> RM0.00 | M5: =FebruarySales[Caj pengiriman]-FebruarySales[Yuran pengiriman] -> (RM0.70) | N5: =FebruarySales[Untung/rugi jualan]+FebruarySales[Untung/rugi pengiriman] -> (RM0.70)
A6: Jumlah Untung/Rugi | C6: TS023 | D6: Item 4 | E6: RM22.00 | F6: RM18.00 | G6: RM3.00 | H6: RM1.50 | J6: RM7.00 | K6: RM10.00 | L6: =IFERROR(FebruarySales[Harga jualan]-(FebruarySales[Harga belian]+FebruarySales[Yuran dalam talian]+FebruarySales[Yuran PayPal]+FebruarySales[Yuran kad kredit]),"") -> (RM8.50) | M6: =FebruarySales[Caj pengiriman]-FebruarySales[Yuran pengiriman] -> (RM3.00) | N6: =FebruarySales[Untung/rugi jualan]+FebruarySales[Untung/rugi pengiriman] -> (RM11.50)
A7: =FebruarySales[[#Totals],[Jumlah untung/rugi]] -> $224.60 | C7: TS024 | D7: Item 5 | E7: RM10.00 | F7: RM12.00 | G7: RM2.00 | H7: RM1.50 | J7: RM14.00 | K7: RM7.00 | L7: =IFERROR(FebruarySales[Harga jualan]-(FebruarySales[Harga belian]+FebruarySales[Yuran dalam talian]+FebruarySales[Yuran PayPal]+FebruarySales[Yuran kad kredit]),"") -> (RM1.50) | M7: =FebruarySales[Caj pengiriman]-FebruarySales[Yuran pengiriman] -> RM7.00 | N7: =FebruarySales[Untung/rugi jualan]+FebruarySales[Untung/rugi pengiriman] -> RM5.50
C8: Jumlah | D8: ="Item Dijual: "&SUBTOTAL(103,FebruarySales[Perihalan item]) -> Item Dijual: 5 | E8: =SUBTOTAL(109,FebruarySales[Harga belian]) -> RM77.00 | F8: =SUBTOTAL(109,FebruarySales[Harga jualan]) -> RM312.00 | G8: =SUBTOTAL(109,FebruarySales[Yuran dalam talian]) -> RM13.00 | H8: =SUBTOTAL(109,FebruarySales[Yuran PayPal]) -> RM4.50 | I8: =SUBTOTAL(109,FebruarySales[Yuran kad kredit]) -> RM5.20 | J8: =SUBTOTAL(109,FebruarySales[Caj pengiriman]) -> RM48.50 | K8: =SUBTOTAL(109,FebruarySales[Yuran pengiriman]) -> RM36.20 | L8: =SUBTOTAL(109,FebruarySales[Untung/rugi jualan]) -> RM212.30 | M8: =SUBTOTAL(109,FebruarySales[Untung/rugi pengiriman]) -> RM12.30 | N8: =SUBTOTAL(109,FebruarySales[Jumlah untung/rugi]) -> RM224.60
A9: Arah aliran untung/rugi

Sheet Mac
A1: MAC
A2: Jualan Dalam Talian | C2: ID Lelong | D2: Perihalan item | E2: Harga belian | F2: Harga jualan | G2: Yuran dalam talian | H2: Yuran PayPal | I2: Yuran kad kredit | J2: Caj pengiriman | K2: Yuran pengiriman | L2: Untung/rugi jualan | M2: Untung/rugi pengiriman | N2: Jumlah untung/rugi
A3: Tahun | L3: =IFERROR(MarchSales[Harga jualan]-(MarchSales[Harga belian]+MarchSales[Yuran dalam talian]+MarchSales[Yuran PayPal]+MarchSales[Yuran kad kredit]),"") -> RM0.00 | M3: =MarchSales[Caj pengiriman]-MarchSales[Yuran pengiriman] -> RM0.00 | N3: =MarchSales[Untung/rugi jualan]+MarchSales[Untung/rugi pengiriman] -> RM0.00
A4: =SalesYear -> 2012 | L4: =IFERROR(MarchSales[Harga jualan]-(MarchSales[Harga belian]+MarchSales[Yuran dalam talian]+MarchSales[Yuran PayPal]+MarchSales[Yuran kad kredit]),"") -> RM0.00 | M4: =MarchSales[Caj pengiriman]-MarchSales[Yuran pengiriman] -> RM0.00 | N4: =MarchSales[Untung/rugi jualan]+MarchSales[Untung/rugi pengiriman] -> RM0.00
L5: =IFERROR(MarchSales[Harga jualan]-(MarchSales[Harga belian]+MarchSales[Yuran dalam talian]+MarchSales[Yuran PayPal]+MarchSales[Yuran kad kredit]),"") -> RM0.00 | M5: =MarchSales[Caj pengiriman]-MarchSales[Yuran pengiriman] -> RM0.00 | N5: =MarchSales[Untung/rugi jualan]+MarchSales[Untung/rugi pengiriman] -> RM0.00
A6: Jumlah Untung/Rugi | L6: =IFERROR(MarchSales[Harga jualan]-(MarchSales[Harga belian]+MarchSales[Yuran dalam talian]+MarchSales[Yuran PayPal]+MarchSales[Yuran kad kredit]),"") -> RM0.00 | M6: =MarchSales[Caj pengiriman]-MarchSales[Yuran pengiriman] -> RM0.00 | N6: =MarchSales[Untung/rugi jualan]+MarchSales[Untung/rugi pengiriman] -> RM0.00
A7: =MarchSales[[#Totals],[Jumlah untung/rugi]] -> $0.00 | L7: =IFERROR(MarchSales[Harga jualan]-(MarchSales[Harga belian]+MarchSales[Yuran dalam talian]+MarchSales[Yuran PayPal]+MarchSales[Yuran kad kredit]),"") -> RM0.00 | M7: =MarchSales[Caj pengiriman]-MarchSales[Yuran pengiriman] -> RM0.00 | N7: =MarchSales[Untung/rugi jualan]+MarchSales[Untung/rugi pengiriman] -> RM0.00
C8: Jumlah | D8: ="Item Dijual: "&SUBTOTAL(103,MarchSales[Perihalan item]) -> Item Dijual: 0 | E8: =SUBTOTAL(109,MarchSales[Harga belian]) -> RM0.00 | F8: =SUBTOTAL(109,MarchSales[Harga jualan]) -> RM0.00 | G8: =SUBTOTAL(109,MarchSales[Yuran dalam talian]) -> RM0.00 | H8: =SUBTOTAL(109,MarchSales[Yuran PayPal]) -> RM0.00 | I8: =SUBTOTAL(109,MarchSales[Yuran kad kredit]) -> RM0.00 | J8: =SUBTOTAL(109,MarchSales[Caj pengiriman]) -> RM0.00 | K8: =SUBTOTAL(109,MarchSales[Yuran pengiriman]) -> RM0.00 | L8: =SUBTOTAL(109,MarchSales[Untung/rugi jualan]) -> RM0.00 | M8: =SUBTOTAL(109,MarchSales[Untung/rugi pengiriman]) -> RM0.00 | N8: =SUBTOTAL(109,MarchSales[Jumlah untung/rugi]) -> RM0.00
A9: Arah aliran untung/rugi

Sheet April
A1: APRIL
A2: Jualan Dalam Talian | C2: ID Lelong | D2: Perihalan item | E2: Harga belian | F2: Harga jualan | G2: Yuran dalam talian | H2: Yuran PayPal | I2: Yuran kad kredit | J2: Caj pengiriman | K2: Yuran pengiriman | L2: Untung/rugi jualan | M2: Untung/rugi pengiriman | N2: Jumlah untung/rugi
A3: Tahun | M3: =AprilSales[Caj pengiriman]-AprilSales[Yuran pengiriman] -> RM0.00 | N3: =AprilSales[Untung/rugi jualan]+AprilSales[Untung/rugi pengiriman] -> RM0.00
A4: =SalesYear -> 2012 | M4: =AprilSales[Caj pengiriman]-AprilSales[Yuran pengiriman] -> RM0.00 | N4: =AprilSales[Untung/rugi jualan]+AprilSales[Untung/rugi pengiriman] -> RM0.00
M5: =AprilSales[Caj pengiriman]-AprilSales[Yuran pengiriman] -> RM0.00 | N5: =AprilSales[Untung/rugi jualan]+AprilSales[Untung/rugi pengiriman] -> RM0.00
A6: Jumlah Untung/Rugi | M6: =AprilSales[Caj pengiriman]-AprilSales[Yuran pengiriman] -> RM0.00 | N6: =AprilSales[Untung/rugi jualan]+AprilSales[Untung/rugi pengiriman] -> RM0.00
A7: =AprilSales[[#Totals],[Jumlah untung/rugi]] -> $0.00 | M7: =AprilSales[Caj pengiriman]-AprilSales[Yuran pengiriman] -> RM0.00 | N7: =AprilSales[Untung/rugi jualan]+AprilSales[Untung/rugi pengiriman] -> RM0.00
C8: Jumlah | D8: ="Item Dijual: "&SUBTOTAL(103,AprilSales[Perihalan item]) -> Item Dijual: 0 | E8: =SUBTOTAL(109,AprilSales[Harga belian]) -> RM0.00 | F8: =SUBTOTAL(109,AprilSales[Harga jualan]) -> RM0.00 | G8: =SUBTOTAL(109,AprilSales[Yuran dalam talian]) -> RM0.00 | H8: =SUBTOTAL(109,AprilSales[Yuran PayPal]) -> RM0.00 | I8: =SUBTOTAL(109,AprilSales[Yuran kad kredit]) -> RM0.00 | J8: =SUBTOTAL(109,AprilSales[Caj pengiriman]) -> RM0.00 | K8: =SUBTOTAL(109,AprilSales[Yuran pengiriman]) -> RM0.00 | L8: =SUBTOTAL(109,AprilSales[Untung/rugi jualan]) -> RM0.00 | M8: =SUBTOTAL(109,AprilSales[Untung/rugi pengiriman]) -> RM0.00 | N8: =SUBTOTAL(109,AprilSales[Jumlah untung/rugi]) -> RM0.00
A9: Arah aliran untung/rugi

Sheet Mei
A1: MEI
A2: Jualan Dalam Talian | C2: ID Lelong | D2: Perihalan item | E2: Harga belian | F2: Harga jualan | G2: Yuran dalam talian | H2: Yuran PayPal | I2: Yuran kad kredit | J2: Caj pengiriman | K2: Yuran pengiriman | L2: Untung/rugi jualan | M2: Untung/rugi pengiriman | N2: Jumlah untung/rugi
A3: Tahun | M3: =MaySales[Caj pengiriman]-MaySales[Yuran pengiriman] -> RM0.00 | N3: =MaySales[Untung/rugi jualan]+MaySales[Untung/rugi pengiriman] -> RM0.00
A4: =SalesYear -> 2012 | M4: =MaySales[Caj pengiriman]-MaySales[Yuran pengiriman] -> RM0.00 | N4: =MaySales[Untung/rugi jualan]+MaySales[Untung/rugi pengiriman] -> RM0.00
M5: =MaySales[Caj pengiriman]-MaySales[Yuran pengiriman] -> RM0.00 | N5: =MaySales[Untung/rugi jualan]+MaySales[Untung/rugi pengiriman] -> RM0.00
A6: Jumlah Untung/Rugi | M6: =MaySales[Caj pengiriman]-MaySales[Yuran pengiriman] -> RM0.00 | N6: =MaySales[Untung/rugi jualan]+MaySales[Untung/rugi pengiriman] -> RM0.00
A7: =MaySales[[#Totals],[Jumlah untung/rugi]] -> $0.00 | M7: =MaySales[Caj pengiriman]-MaySales[Yuran pengiriman] -> RM0.00 | N7: =MaySales[Untung/rugi jualan]+MaySales[Untung/rugi pengiriman] -> RM0.00
C8: Jumlah | D8: ="Item Dijual: "&SUBTOTAL(103,MaySales[Perihalan item]) -> Item Dijual: 0 | E8: =SUBTOTAL(109,MaySales[Harga belian]) -> RM0.00 | F8: =SUBTOTAL(109,MaySales[Harga jualan]) -> RM0.00 | G8: =SUBTOTAL(109,MaySales[Yuran dalam talian]) -> RM0.00 | H8: =SUBTOTAL(109,MaySales[Yuran PayPal]) -> RM0.00 | I8: =SUBTOTAL(109,MaySales[Yuran kad kredit]) -> RM0.00 | J8: =SUBTOTAL(109,MaySales[Caj pengiriman]) -> RM0.00 | K8: =SUBTOTAL(109,MaySales[Yuran pengiriman]) -> RM0.00 | L8: =SUBTOTAL(109,MaySales[Untung/rugi jualan]) -> RM0.00 | M8: =SUBTOTAL(109,MaySales[Untung/rugi pengiriman]) -> RM0.00 | N8: =SUBTOTAL(109,MaySales[Jumlah untung/rugi]) -> RM0.00
A9: Arah aliran untung/rugi

Sheet Jun
A1: JUN
A2: Jualan Dalam Talian | C2: ID Lelong | D2: Perihalan item | E2: Harga belian | F2: Harga jualan | G2: Yuran dalam talian | H2: Yuran PayPal | I2: Yuran kad kredit | J2: Caj pengiriman | K2: Yuran pengiriman | L2: Untung/rugi jualan | M2: Untung/rugi pengiriman | N2: Jumlah untung/rugi
A3: Tahun | M3: =JuneSales[Caj pengiriman]-JuneSales[Yuran pengiriman] -> RM0.00 | N3: =JuneSales[Untung/rugi jualan]+JuneSales[Untung/rugi pengiriman] -> RM0.00
A4: =SalesYear -> 2012 | M4: =JuneSales[Caj pengiriman]-JuneSales[Yuran pengiriman] -> RM0.00 | N4: =JuneSales[Untung/rugi jualan]+JuneSales[Untung/rugi pengiriman] -> RM0.00
M5: =JuneSales[Caj pengiriman]-JuneSales[Yuran pengiriman] -> RM0.00 | N5: =JuneSales[Untung/rugi jualan]+JuneSales[Untung/rugi pengiriman] -> RM0.00
A6: Jumlah Untung/Rugi | M6: =JuneSales[Caj pengiriman]-JuneSales[Yuran pengiriman] -> RM0.00 | N6: =JuneSales[Untung/rugi jualan]+JuneSales[Untung/rugi pengiriman] -> RM0.00
A7: =JuneSales[[#Totals],[Jumlah untung/rugi]] -> $0.00 | M7: =JuneSales[Caj pengiriman]-JuneSales[Yuran pengiriman] -> RM0.00 | N7: =JuneSales[Untung/rugi jualan]+JuneSales[Untung/rugi pengiriman] -> RM0.00
C8: Jumlah | D8: ="Item Dijual: "&SUBTOTAL(103,JuneSales[Perihalan item]) -> Item Dijual: 0 | E8: =SUBTOTAL(109,JuneSales[Harga belian]) -> RM0.00 | F8: =SUBTOTAL(109,JuneSales[Harga jualan]) -> RM0.00 | G8: =SUBTOTAL(109,JuneSales[Yuran dalam talian]) -> RM0.00 | H8: =SUBTOTAL(109,JuneSales[Yuran PayPal]) -> RM0.00 | I8: =SUBTOTAL(109,JuneSales[Yuran kad kredit]) -> RM0.00 | J8: =SUBTOTAL(109,JuneSales[Caj pengiriman]) -> RM0.00 | K8: =SUBTOTAL(109,JuneSales[Yuran pengiriman]) -> RM0.00 | L8: =SUBTOTAL(109,JuneSales[Untung/rugi jualan]) -> RM0.00 | M8: =SUBTOTAL(109,JuneSales[Untung/rugi pengiriman]) -> RM0.00 | N8: =SUBTOTAL(109,JuneSales[Jumlah untung/rugi]) -> RM0.00
A9: Arah aliran untung/rugi

Sheet Julai
A1: JULAI
A2: Jualan Dalam Talian | C2: ID Lelong | D2: Perihalan item | E2: Harga belian | F2: Harga jualan | G2: Yuran dalam talian | H2: Yuran PayPal | I2: Yuran kad kredit | J2: Caj pengiriman | K2: Yuran pengiriman | L2: Untung/rugi jualan | M2: Untung/rugi pengiriman | N2: Jumlah untung/rugi
A3: Tahun | M3: =JulySales[Caj pengiriman]-JulySales[Yuran pengiriman] -> RM0.00 | N3: =JulySales[Untung/rugi jualan]+JulySales[Untung/rugi pengiriman] -> RM0.00
A4: =SalesYear -> 2012 | M4: =JulySales[Caj pengiriman]-JulySales[Yuran pengiriman] -> RM0.00 | N4: =JulySales[Untung/rugi jualan]+JulySales[Untung/rugi pengiriman] -> RM0.00
M5: =JulySales[Caj pengiriman]-JulySales[Yuran pengiriman] -> RM0.00 | N5: =JulySales[Untung/rugi jualan]+JulySales[Untung/rugi pengiriman] -> RM0.00
A6: Jumlah Untung/Rugi | M6: =JulySales[Caj pengiriman]-JulySales[Yuran pengiriman] -> RM0.00 | N6: =JulySales[Untung/rugi jualan]+JulySales[Untung/rugi pengiriman] -> RM0.00
A7: =JulySales[[#Totals],[Jumlah untung/rugi]] -> $0.00 | M7: =JulySales[Caj pengiriman]-JulySales[Yuran pengiriman] -> RM0.00 | N7: =JulySales[Untung/rugi jualan]+JulySales[Untung/rugi pengiriman] -> RM0.00
C8: Jumlah | D8: ="Item Dijual: "&SUBTOTAL(103,JulySales[Perihalan item]) -> Item Dijual: 0 | E8: =SUBTOTAL(109,JulySales[Harga belian]) -> RM0.00 | F8: =SUBTOTAL(109,JulySales[Harga jualan]) -> RM0.00 | G8: =SUBTOTAL(109,JulySales[Yuran dalam talian]) -> RM0.00 | H8: =SUBTOTAL(109,JulySales[Yuran PayPal]) -> RM0.00 | I8: =SUBTOTAL(109,JulySales[Yuran kad kredit]) -> RM0.00 | J8: =SUBTOTAL(109,JulySales[Caj pengiriman]) -> RM0.00 | K8: =SUBTOTAL(109,JulySales[Yuran pengiriman]) -> RM0.00 | L8: =SUBTOTAL(109,JulySales[Untung/rugi jualan]) -> RM0.00 | M8: =SUBTOTAL(109,JulySales[Untung/rugi pengiriman]) -> RM0.00 | N8: =SUBTOTAL(109,JulySales[Jumlah untung/rugi]) -> RM0.00
A9: Arah aliran untung/rugi

Sheet Ogos
A1: OGOS
A2: Jualan Dalam Talian | C2: ID Lelong | D2: Perihalan item | E2: Harga belian | F2: Harga jualan | G2: Yuran dalam talian | H2: Yuran PayPal | I2: Yuran kad kredit | J2: Caj pengiriman | K2: Yuran pengiriman | L2: Untung/rugi jualan | M2: Untung/rugi pengiriman | N2: Jumlah untung/rugi
A3: Tahun | M3: =AugustSales[Caj pengiriman]-AugustSales[Yuran pengiriman] -> RM0.00 | N3: =AugustSales[Untung/rugi jualan]+AugustSales[Untung/rugi pengiriman] -> RM0.00
A4: =SalesYear -> 2012 | M4: =AugustSales[Caj pengiriman]-AugustSales[Yuran pengiriman] -> RM0.00 | N4: =AugustSales[Untung/rugi jualan]+AugustSales[Untung/rugi pengiriman] -> RM0.00
M5: =AugustSales[Caj pengiriman]-AugustSales[Yuran pengiriman] -> RM0.00 | N5: =AugustSales[Untung/rugi jualan]+AugustSales[Untung/rugi pengiriman] -> RM0.00
A6: Jumlah Untung/Rugi | M6: =AugustSales[Caj pengiriman]-AugustSales[Yuran pengiriman] -> RM0.00 | N6: =AugustSales[Untung/rugi jualan]+AugustSales[Untung/rugi pengiriman] -> RM0.00
A7: =AugustSales[[#Totals],[Jumlah untung/rugi]] -> $0.00 | M7: =AugustSales[Caj pengiriman]-AugustSales[Yuran pengiriman] -> RM0.00 | N7: =AugustSales[Untung/rugi jualan]+AugustSales[Untung/rugi pengiriman] -> RM0.00
C8: Jumlah | D8: ="Item Dijual: "&SUBTOTAL(103,AugustSales[Perihalan item]) -> Item Dijual: 0 | E8: =SUBTOTAL(109,AugustSales[Harga belian]) -> RM0.00 | F8: =SUBTOTAL(109,AugustSales[Harga jualan]) -> RM0.00 | G8: =SUBTOTAL(109,AugustSales[Yuran dalam talian]) -> RM0.00 | H8: =SUBTOTAL(109,AugustSales[Yuran PayPal]) -> RM0.00 | I8: =SUBTOTAL(109,AugustSales[Yuran kad kredit]) -> RM0.00 | J8: =SUBTOTAL(109,AugustSales[Caj pengiriman]) -> RM0.00 | K8: =SUBTOTAL(109,AugustSales[Yuran pengiriman]) -> RM0.00 | L8: =SUBTOTAL(109,AugustSales[Untung/rugi jualan]) -> RM0.00 | M8: =SUBTOTAL(109,AugustSales[Untung/rugi pengiriman]) -> RM0.00 | N8: =SUBTOTAL(109,AugustSales[Jumlah untung/rugi]) -> RM0.00
A9: Arah aliran untung/rugi

Sheet September
A1: SEPTEMBER
A2: Jualan Dalam Talian | C2: ID Lelong | D2: Perihalan item | E2: Harga belian | F2: Harga jualan | G2: Yuran dalam talian | H2: Yuran PayPal | I2: Yuran kad kredit | J2: Caj pengiriman | K2: Yuran pengiriman | L2: Untung/rugi jualan | M2: Untung/rugi pengiriman | N2: Jumlah untung/rugi
A3: Tahun | M3: =SeptemberSales[Caj pengiriman]-SeptemberSales[Yuran pengiriman] -> RM0.00 | N3: =SeptemberSales[Untung/rugi jualan]+SeptemberSales[Untung/rugi pengiriman] -> RM0.00
A4: =SalesYear -> 2012 | M4: =SeptemberSales[Caj pengiriman]-SeptemberSales[Yuran pengiriman] -> RM0.00 | N4: =SeptemberSales[Untung/rugi jualan]+SeptemberSales[Untung/rugi pengiriman] -> RM0.00
M5: =SeptemberSales[Caj pengiriman]-SeptemberSales[Yuran pengiriman] -> RM0.00 | N5: =SeptemberSales[Untung/rugi jualan]+SeptemberSales[Untung/rugi pengiriman] -> RM0.00
A6: Jumlah Untung/Rugi | M6: =SeptemberSales[Caj pengiriman]-SeptemberSales[Yuran pengiriman] -> RM0.00 | N6: =SeptemberSales[Untung/rugi jualan]+SeptemberSales[Untung/rugi pengiriman] -> RM0.00
A7: =SeptemberSales[[#Totals],[Jumlah untung/rugi]] -> $0.00 | M7: =SeptemberSales[Caj pengiriman]-SeptemberSales[Yuran pengiriman] -> RM0.00 | N7: =SeptemberSales[Untung/rugi jualan]+SeptemberSales[Untung/rugi pengiriman] -> RM0.00
C8: Jumlah | D8: ="Item Dijual: "&SUBTOTAL(103,SeptemberSales[Perihalan item]) -> Item Dijual: 0 | E8: =SUBTOTAL(109,SeptemberSales[Harga belian]) -> RM0.00 | F8: =SUBTOTAL(109,SeptemberSales[Harga jualan]) -> RM0.00 | G8: =SUBTOTAL(109,SeptemberSales[Yuran dalam talian]) -> RM0.00 | H8: =SUBTOTAL(109,SeptemberSales[Yuran PayPal]) -> RM0.00 | I8: =SUBTOTAL(109,SeptemberSales[Yuran kad kredit]) -> RM0.00 | J8: =SUBTOTAL(109,SeptemberSales[Caj pengiriman]) -> RM0.00 | K8: =SUBTOTAL(109,SeptemberSales[Yuran pengiriman]) -> RM0.00 | L8: =SUBTOTAL(109,SeptemberSales[Untung/rugi jualan]) -> RM0.00 | M8: =SUBTOTAL(109,SeptemberSales[Untung/rugi pengiriman]) -> RM0.00 | N8: =SUBTOTAL(109,SeptemberSales[Jumlah untung/rugi]) -> RM0.00
A9: Arah aliran untung/rugi

Sheet Oktober
A1: OKTOBER
A2: Jualan Dalam Talian | C2: ID Lelong | D2: Perihalan item | E2: Harga belian | F2: Harga jualan | G2: Yuran dalam talian | H2: Yuran PayPal | I2: Yuran kad kredit | J2: Caj pengiriman | K2: Yuran pengiriman | L2: Untung/rugi jualan | M2: Untung/rugi pengiriman | N2: Jumlah untung/rugi
A3: Tahun | M3: =OctoberSales[Caj pengiriman]-OctoberSales[Yuran pengiriman] -> RM0.00 | N3: =OctoberSales[Untung/rugi jualan]+OctoberSales[Untung/rugi pengiriman] -> RM0.00
A4: =SalesYear -> 2012 | M4: =OctoberSales[Caj pengiriman]-OctoberSales[Yuran pengiriman] -> RM0.00 | N4: =OctoberSales[Untung/rugi jualan]+OctoberSales[Untung/rugi pengiriman] -> RM0.00
M5: =OctoberSales[Caj pengiriman]-OctoberSales[Yuran pengiriman] -> RM0.00 | N5: =OctoberSales[Untung/rugi jualan]+OctoberSales[Untung/rugi pengiriman] -> RM0.00
A6: Jumlah Untung/Rugi | M6: =OctoberSales[Caj pengiriman]-OctoberSales[Yuran pengiriman] -> RM0.00 | N6: =OctoberSales[Untung/rugi jualan]+OctoberSales[Untung/rugi pengiriman] -> RM0.00
A7: =OctoberSales[[#Totals],[Jumlah untung/rugi]] -> $0.00 | M7: =OctoberSales[Caj pengiriman]-OctoberSales[Yuran pengiriman] -> RM0.00 | N7: =OctoberSales[Untung/rugi jualan]+OctoberSales[Untung/rugi pengiriman] -> RM0.00
C8: Jumlah | D8: ="Item Dijual: "&SUBTOTAL(103,OctoberSales[Perihalan item]) -> Item Dijual: 0 | E8: =SUBTOTAL(109,OctoberSales[Harga belian]) -> RM0.00 | F8: =SUBTOTAL(109,OctoberSales[Harga jualan]) -> RM0.00 | G8: =SUBTOTAL(109,OctoberSales[Yuran dalam talian]) -> RM0.00 | H8: =SUBTOTAL(109,OctoberSales[Yuran PayPal]) -> RM0.00 | I8: =SUBTOTAL(109,OctoberSales[Yuran kad kredit]) -> RM0.00 | J8: =SUBTOTAL(109,OctoberSales[Caj pengiriman]) -> RM0.00 | K8: =SUBTOTAL(109,OctoberSales[Yuran pengiriman]) -> RM0.00 | L8: =SUBTOTAL(109,OctoberSales[Untung/rugi jualan]) -> RM0.00 | M8: =SUBTOTAL(109,OctoberSales[Untung/rugi pengiriman]) -> RM0.00 | N8: =SUBTOTAL(109,OctoberSales[Jumlah untung/rugi]) -> RM0.00
A9: Arah aliran untung/rugi

Sheet November
A1: NOVEMBER
A2: Jualan Dalam Talian | C2: ID Lelong | D2: Perihalan item | E2: Harga belian | F2: Harga jualan | G2: Yuran dalam talian | H2: Yuran PayPal | I2: Yuran kad kredit | J2: Caj pengiriman | K2: Yuran pengiriman | L2: Untung/rugi jualan | M2: Untung/rugi pengiriman | N2: Jumlah untung/rugi
A3: Tahun | M3: =NovemberSales[Caj pengiriman]-NovemberSales[Yuran pengiriman] -> RM0.00 | N3: =NovemberSales[Untung/rugi jualan]+NovemberSales[Untung/rugi pengiriman] -> RM0.00
A4: =SalesYear -> 2012 | M4: =NovemberSales[Caj pengiriman]-NovemberSales[Yuran pengiriman] -> RM0.00 | N4: =NovemberSales[Untung/rugi jualan]+NovemberSales[Untung/rugi pengiriman] -> RM0.00
M5: =NovemberSales[Caj pengiriman]-NovemberSales[Yuran pengiriman] -> RM0.00 | N5: =NovemberSales[Untung/rugi jualan]+NovemberSales[Untung/rugi pengiriman] -> RM0.00
A6: Jumlah Untung/Rugi | M6: =NovemberSales[Caj pengiriman]-NovemberSales[Yuran pengiriman] -> RM0.00 | N6: =NovemberSales[Untung/rugi jualan]+NovemberSales[Untung/rugi pengiriman] -> RM0.00
A7: =NovemberSales[[#Totals],[Jumlah untung/rugi]] -> $0.00 | M7: =NovemberSales[Caj pengiriman]-NovemberSales[Yuran pengiriman] -> RM0.00 | N7: =NovemberSales[Untung/rugi jualan]+NovemberSales[Untung/rugi pengiriman] -> RM0.00
C8: Jumlah | D8: ="Item Dijual: "&SUBTOTAL(103,NovemberSales[Perihalan item]) -> Item Dijual: 0 | E8: =SUBTOTAL(109,NovemberSales[Harga belian]) -> RM0.00 | F8: =SUBTOTAL(109,NovemberSales[Harga jualan]) -> RM0.00 | G8: =SUBTOTAL(109,NovemberSales[Yuran dalam talian]) -> RM0.00 | H8: =SUBTOTAL(109,NovemberSales[Yuran PayPal]) -> RM0.00 | I8: =SUBTOTAL(109,NovemberSales[Yuran kad kredit]) -> RM0.00 | J8: =SUBTOTAL(109,NovemberSales[Caj pengiriman]) -> RM0.00 | K8: =SUBTOTAL(109,NovemberSales[Yuran pengiriman]) -> RM0.00 | L8: =SUBTOTAL(109,NovemberSales[Untung/rugi jualan]) -> RM0.00 | M8: =SUBTOTAL(109,NovemberSales[Untung/rugi pengiriman]) -> RM0.00 | N8: =SUBTOTAL(109,NovemberSales[Jumlah untung/rugi]) -> RM0.00
A9: Arah aliran untung/rugi

Sheet Disember
A1: DISEMBER
A2: Jualan Dalam Talian | C2: ID Lelong | D2: Perihalan item | E2: Harga belian | F2: Harga jualan | G2: Yuran dalam talian | H2: Yuran PayPal | I2: Yuran kad kredit | J2: Caj pengiriman | K2: Yuran pengiriman | L2: Untung/rugi jualan | M2: Untung/rugi pengiriman | N2: Jumlah untung/rugi
A3: Tahun | M3: =DecemberSales[Caj pengiriman]-DecemberSales[Yuran pengiriman] -> RM0.00 | N3: =DecemberSales[Untung/rugi jualan]+DecemberSales[Untung/rugi pengiriman] -> RM0.00
A4: =SalesYear -> 2012 | M4: =DecemberSales[Caj pengiriman]-DecemberSales[Yuran pengiriman] -> RM0.00 | N4: =DecemberSales[Untung/rugi jualan]+DecemberSales[Untung/rugi pengiriman] -> RM0.00
M5: =DecemberSales[Caj pengiriman]-DecemberSales[Yuran pengiriman] -> RM0.00 | N5: =DecemberSales[Untung/rugi jualan]+DecemberSales[Untung/rugi pengiriman] -> RM0.00
A6: Jumlah Untung/Rugi | M6: =DecemberSales[Caj pengiriman]-DecemberSales[Yuran pengiriman] -> RM0.00 | N6: =DecemberSales[Untung/rugi jualan]+DecemberSales[Untung/rugi pengiriman] -> RM0.00
A7: =DecemberSales[[#Totals],[Jumlah untung/rugi]] -> $0.00 | M7: =DecemberSales[Caj pengiriman]-DecemberSales[Yuran pengiriman] -> RM0.00 | N7: =DecemberSales[Untung/rugi jualan]+DecemberSales[Untung/rugi pengiriman] -> RM0.00
C8: Jumlah | D8: ="Item Dijual: "&SUBTOTAL(103,DecemberSales[Perihalan item]) -> Item Dijual: 0 | E8: =SUBTOTAL(109,DecemberSales[Harga belian]) -> RM0.00 | F8: =SUBTOTAL(109,DecemberSales[Harga jualan]) -> RM0.00 | G8: =SUBTOTAL(109,DecemberSales[Yuran dalam talian]) -> RM0.00 | H8: =SUBTOTAL(109,DecemberSales[Yuran PayPal]) -> RM0.00 | I8: =SUBTOTAL(109,DecemberSales[Yuran kad kredit]) -> RM0.00 | J8: =SUBTOTAL(109,DecemberSales[Caj pengiriman]) -> RM0.00 | K8: =SUBTOTAL(109,DecemberSales[Yuran pengiriman]) -> RM0.00 | L8: =SUBTOTAL(109,DecemberSales[Untung/rugi jualan]) -> RM0.00 | M8: =SUBTOTAL(109,DecemberSales[Untung/rugi pengiriman]) -> RM0.00 | N8: =SUBTOTAL(109,DecemberSales[Jumlah untung/rugi]) -> RM0.00
A9: Arah aliran untung/rugi

Sheet Ringkasan Tarikh Mula - Kini
A1: Ringkasan
A2: YTD | C2: Untung/Rugi | H2: Untung/Rugi tarikh mula sehingga kini
A3: Tahun | H3: Bulan | I3: Untung/rugi jualan | J3: Untung/rugi pengiriman | K3: Jumlah untung/rugi
A4: =SalesYear -> 2012 | H4: Januari | I4: =JanuarySales[[#Totals],[Untung/rugi jualan]] -> RM79.50 | J4: =JanuarySales[[#Totals],[Untung/rugi pengiriman]] -> RM9.50 | K4: =IF(AND(YTDSummary[[#This Row],[Untung/rugi jualan]]<>"",YTDSummary[[#This Row],[Untung/rugi pengiriman]]<>""),YTDSummary[[#This Row],[Untung/rugi jualan]]+YTDSummary[[#This Row],[Untung/rugi pengiriman]],"") -> RM89.00
H5: Februari | I5: =FebruarySales[[#Totals],[Untung/rugi jualan]] -> RM212.30 | J5: =FebruarySales[[#Totals],[Untung/rugi pengiriman]] -> RM12.30 | K5: =IF(AND(YTDSummary[[#This Row],[Untung/rugi jualan]]<>"",YTDSummary[[#This Row],[Untung/rugi pengiriman]]<>""),YTDSummary[[#This Row],[Untung/rugi jualan]]+YTDSummary[[#This Row],[Untung/rugi pengiriman]],"") -> RM224.60
A6: Arah Aliran Jualan Bulanan: | H6: Mac | I6: =MarchSales[[#Totals],[Untung/rugi jualan]] -> RM0.00 | J6: =MarchSales[[#Totals],[Untung/rugi pengiriman]] -> RM0.00 | K6: =IF(AND(YTDSummary[[#This Row],[Untung/rugi jualan]]<>"",YTDSummary[[#This Row],[Untung/rugi pengiriman]]<>""),YTDSummary[[#This Row],[Untung/rugi jualan]]+YTDSummary[[#This Row],[Untung/rugi pengiriman]],"") -> RM0.00
H7: April | I7: =AprilSales[[#Totals],[Untung/rugi jualan]] -> RM0.00 | J7: =AprilSales[[#Totals],[Untung/rugi pengiriman]] -> RM0.00 | K7: =IF(AND(YTDSummary[[#This Row],[Untung/rugi jualan]]<>"",YTDSummary[[#This Row],[Untung/rugi pengiriman]]<>""),YTDSummary[[#This Row],[Untung/rugi jualan]]+YTDSummary[[#This Row],[Untung/rugi pengiriman]],"") -> RM0.00
H8: Mei | I8: =MaySales[[#Totals],[Untung/rugi jualan]] -> RM0.00 | J8: =MaySales[[#Totals],[Untung/rugi pengiriman]] -> RM0.00 | K8: =IF(AND(YTDSummary[[#This Row],[Untung/rugi jualan]]<>"",YTDSummary[[#This Row],[Untung/rugi pengiriman]]<>""),YTDSummary[[#This Row],[Untung/rugi jualan]]+YTDSummary[[#This Row],[Untung/rugi pengiriman]],"") -> RM0.00
H9: Jun | I9: =JuneSales[[#Totals],[Untung/rugi jualan]] -> RM0.00 | J9: =JuneSales[[#Totals],[Untung/rugi pengiriman]] -> RM0.00 | K9: =IF(AND(YTDSummary[[#This Row],[Untung/rugi jualan]]<>"",YTDSummary[[#This Row],[Untung/rugi pengiriman]]<>""),YTDSummary[[#This Row],[Untung/rugi jualan]]+YTDSummary[[#This Row],[Untung/rugi pengiriman]],"") -> RM0.00
H10: Julai | I10: =JulySales[[#Totals],[Untung/rugi jualan]] -> RM0.00 | J10: =JulySales[[#Totals],[Untung/rugi pengiriman]] -> RM0.00 | K10: =IF(AND(YTDSummary[[#This Row],[Untung/rugi jualan]]<>"",YTDSummary[[#This Row],[Untung/rugi pengiriman]]<>""),YTDSummary[[#This Row],[Untung/rugi jualan]]+YTDSummary[[#This Row],[Untung/rugi pengiriman]],"") -> RM0.00
H11: Ogos | I11: =AugustSales[[#Totals],[Untung/rugi jualan]] -> RM0.00 | J11: =AugustSales[[#Totals],[Untung/rugi pengiriman]] -> RM0.00 | K11: =IF(AND(YTDSummary[[#This Row],[Untung/rugi jualan]]<>"",YTDSummary[[#This Row],[Untung/rugi pengiriman]]<>""),YTDSummary[[#This Row],[Untung/rugi jualan]]+YTDSummary[[#This Row],[Untung/rugi pengiriman]],"") -> RM0.00
H12: September | I12: =SeptemberSales[[#Totals],[Untung/rugi jualan]] -> RM0.00 | J12: =SeptemberSales[[#Totals],[Untung/rugi pengiriman]] -> RM0.00 | K12: =IF(AND(YTDSummary[[#This Row],[Untung/rugi jualan]]<>"",YTDSummary[[#This Row],[Untung/rugi pengiriman]]<>""),YTDSummary[[#This Row],[Untung/rugi jualan]]+YTDSummary[[#This Row],[Untung/rugi pengiriman]],"") -> RM0.00
H13: Oktober | I13: =OctoberSales[[#Totals],[Untung/rugi jualan]] -> RM0.00 | J13: =OctoberSales[[#Totals],[Untung/rugi pengiriman]] -> RM0.00 | K13: =IF(AND(YTDSummary[[#This Row],[Untung/rugi jualan]]<>"",YTDSummary[[#This Row],[Untung/rugi pengiriman]]<>""),YTDSummary[[#This Row],[Untung/rugi jualan]]+YTDSummary[[#This Row],[Untung/rugi pengiriman]],"") -> RM0.00
H14: November | I14: =NovemberSales[[#Totals],[Untung/rugi jualan]] -> RM0.00 | J14: =NovemberSales[[#Totals],[Untung/rugi pengiriman]] -> RM0.00 | K14: =IF(AND(YTDSummary[[#This Row],[Untung/rugi jualan]]<>"",YTDSummary[[#This Row],[Untung/rugi pengiriman]]<>""),YTDSummary[[#This Row],[Untung/rugi jualan]]+YTDSummary[[#This Row],[Untung/rugi pengiriman]],"") -> RM0.00
H15: Disember | I15: =DecemberSales[[#Totals],[Untung/rugi jualan]] -> RM0.00 | J15: =DecemberSales[[#Totals],[Untung/rugi pengiriman]] -> RM0.00 | K15: =IF(AND(YTDSummary[[#This Row],[Untung/rugi jualan]]<>"",YTDSummary[[#This Row],[Untung/rugi pengiriman]]<>""),YTDSummary[[#This Row],[Untung/rugi jualan]]+YTDSummary[[#This Row],[Untung/rugi pengiriman]],"") -> RM0.00
H16: Jumlah | I16: =SUBTOTAL(109,YTDSummary[Untung/rugi jualan]) -> RM291.80 | J16: =SUBTOTAL(109,YTDSummary[Untung/rugi pengiriman]) -> RM21.80 | K16: =SUBTOTAL(109,YTDSummary[Jumlah untung/rugi]) -> RM313.60
